Cogmind - Beta 11 X3 @@@ ROGUE MODE // 2021.04.02 @ 12:47:18 Player: Stryker Result: Self-destructed Performance ------------- Evolutions (2) 1000 Regions Visited (5) 1000 Robots Destroyed (76) 380 Value Destroyed (2084) 2084 Prototype IDs (8) 160 Alien Tech Used (0) 0 Bonus (0) 0 TOTAL SCORE: 4624 Bonus ------- None Cogmind --------- Core Integrity 450/550 Matter 265/300 Energy 100/100 System Corruption 0% Temperature Cool (18) Movement Treading (252) Ox1 Location -8/Materials Parts ------- > --- POWER (1) -------- (None) > --- PROPULSION (3) --- Light Treads Advanced Treads Armored Wheel > --- UTILITY (5) ------ Improved Heat Sink Improved Heat Sink High-capacity Storage Unit Hacking Suite Hacking Suite > --- WEAPON (2) ------- Improved Assault Rifle > --- INVENTORY (20) --- Micro Nuclear Core Micro Nuclear Core Improved Treads Improved Treads Improved Treads Wheel Compact Wheel Large Storage Unit High-capacity Storage Unit Structural Scanner Particle Gun Advanced Beam Cannon Improved Assault Rifle High-powered Shotgun Rocket Launcher Flail Peak State ------------ > --- POWER ------------ Micro Nuclear Core > --- PROPULSION ------- Improved Treads Advanced Treads Armored Wheel > --- UTILITY ---------- Improved Heat Sink High-capacity Storage Unit Hacking Suite Hacking Suite Hacking Suite > --- WEAPON ----------- Improved Assault Rifle Improved Assault Rifle > --- INVENTORY -------- Micro Nuclear Core Micro Nuclear Core Light Treads Light Treads Light Treads Improved Treads Improved Treads Improved Treads Wheel Compact Wheel Large Storage Unit High-capacity Storage Unit Structural Scanner Advanced Beam Cannon Improved Assault Rifle High-powered Shotgun Rocket Launcher Flail [Rating: 33] Favorites ----------- Power Heavy Ion Engine Engine Heavy Ion Engine Power Core Micro Nuclear Core Propulsion Light Treads Treads Light Treads Leg Aluminum Leg Wheel Armored Wheel Utility Light Armor Plating Device Structural Scanner Storage High-capacity Storage Unit Processor Seismic Analyzer Hackware Hacking Suite Protection Light Armor Plating Weapon Improved Assault Rifle Energy Gun EM Pulse Gun Energy Cannon Advanced Beam Cannon Ballistic Gun Improved Assault Rifle Impact Weapon Mace Build | -11 -10 -10 -9 -9 -8 ------- Run | Scr Mat Min Mat Min Mat Slots Evolved 4 | . . . 2 . 2 Power . | . . . . . . Propulsion 1 | . . . 1 . . Utility 3 | . . . 1 . 2 Weapon . | . . . . . . Parts Attached 97 | 1 16 1 50 12 17 Power 5 | . 1 . 2 . 2 Engine 3 | . 1 . 2 . . Core 2 | . . . . . 2 Reactor . | . . . . . . Propulsion 23 | . 3 . 12 4 4 Treads 19 | . 2 . 10 3 4 Leg . | . . . . . . Wheel 4 | . 1 . 2 1 . Hover . | . . . . . . Flight . | . . . . . . Utility 44 | 1 8 1 17 7 10 Device 21 | 1 5 . 5 3 7 Storage 3 | . 1 . 2 . . Processor 1 | . 1 . . . . Hackware 3 | . . . . . 3 Protection 16 | . 1 1 10 4 . Artifact . | . . . . . . Weapon 25 | . 4 . 19 1 1 Energy Gun 1 | . . . 1 . . Energy Cannon 1 | . . . 1 . . Ballistic Gun 16 | . 4 . 10 1 1 Ballistic Cannon . | . . . . . . Launcher . | . . . . . . Special Weapon . | . . . . . . Impact Weapon 7 | . . . 7 . . Slashing Weapon . | . . . . . . Piercing Weapon . | . . . . . . Special Melee Weapon . | . . . . . . Unidentified Prototypes 4 | . . . 4 . . Corrupted Parts 2 | 1 . . 1 . . System Corruption 5 | 2 . . 3 . . Parts Lost 17 | . 3 . 1 5 8 Power 1 | . . . . . 1 Propulsion 5 | . 1 . . 1 3 Utility 6 | . . . 1 3 2 Weapon 5 | . 2 . . 1 2 Highest Loss Streak 3 | . 3 . 1 3 3 Average Slot Usage (%) 98 | . 100 100 99 95 92 Engine 10 | . 14 14 10 11 . Treads 18 | . 10 14 22 22 17 Leg 1 | . 6 . . . . Wheel 10 | . 10 14 11 10 9 Device 5 | . 13 7 2 5 5 Storage 11 | . 14 14 11 11 9 Hackware 2 | . . . . . 21 Protection 12 | . . 6 19 12 2 Ballistic Gun 20 | . 25 28 17 22 18 Impact Weapon 2 | . . . 4 . . Naked Turns . | . . . . . . Heaviest Build 64 | 12 20 22 64 64 58 Greatest Support 23 | 20 23 23 16 12 12 Greatest Overweight (x) 5 | . 1 . 5 5 4 Average Overweight (x) 2 | . . . 3 4 4 Largest Inventory Capacity 20 | 8 10 10 20 20 20 Average Capacity 15 | 8 8 10 18 20 20 Most Carried 20 | 6 10 10 20 20 20 Average Carried 15 | 6 8 10 17 19 18 Final Capacity 20 | 8 10 10 20 20 20 Final Carried 20 | 6 10 10 20 20 16 Class Distribution -------------------- 73% | Mutant 19% | Scavenger-Mutant 7% | Hacker-Mutant Dominant Class ---------------- Mutant | -10/Materials Mutant | -10/Mines Mutant | -9/Materials Mutant | -9/Mines Hacker-Mutant | -8/Materials Resources | -11 -10 -10 -9 -9 -8 ----------- Run | Scr Mat Min Mat Min Mat Matter Collected 2312 | 218 277 95 1089 316 317 Remotely . | . . . . . . Salvage Created 3073 | 87 449 139 1564 365 469 Parts 176 | 2 26 15 78 34 21 Haulers Intercepted 5 | . 1 . 4 . . Recyclers Shooed 5 | . . 1 4 . . Parts Field Recycled . | . . . . . . Retrieved Matter . | . . . . . . Parts Self-Destructed . | . . . . . . Prevented . | . . . . . . Kills | -11 -10 -10 -9 -9 -8 ------- Run | Scr Mat Min Mat Min Mat Combat Hostiles Destroyed 56 | . 8 5 21 13 9 Guns 56 | . 8 5 21 13 9 Classes Destroyed 11 | 2 5 . 2 1 1 Worker 1 | . . . . 1 . Tunneler 1 | 1 . . . . . Hauler 5 | . 1 . 4 . . Recycler 6 | 1 1 . 4 . . Operator 5 | . 1 . 3 . 1 Watcher 2 | . 2 . . . . Swarmer 14 | . 3 3 . 8 . Grunt 29 | . 5 2 12 2 8 Brawler 1 | . . . . . 1 Duelist 2 | . . . 1 1 . Sentry 10 | . . . 8 2 . Best Kill Streak 4 | 2 3 2 4 4 3 Combat Bots Only 4 | . 3 2 4 4 3 Max Kills in Single Turn 1 | 1 1 1 1 1 1 Gunslinging . | . . . . . . Exploded . | . . . . . . Melee . | . . . . . . Uniques/NPCs Destroyed . | . . . . . . Combat | -11 -10 -10 -9 -9 -8 -------- Run | Scr Mat Min Mat Min Mat Damage Taken 3955 | . 598 190 1157 1022 988 Core 632 | . 185 21 146 180 100 Absorbed by Shields . | . . . . . . Core Remaining (%) 45 | 100 . 17 . 18 . Volleys Fired 229 | 8 46 13 94 31 37 Largest 2 | 2 2 2 2 2 2 Hottest 60 | 60 60 43 46 46 46 Shots Fired 450 | 16 92 26 180 62 74 Gun 450 | 16 92 26 180 62 74 Cannon . | . . . . . . Launcher . | . . . . . . Special . | . . . . . . Kinetic 426 | 8 76 26 180 62 74 Thermal . | . . . . . . Explosive . | . . . . . . Electromagnetic 24 | 8 16 . . . . Robot Hit Streak 37 | 3 22 4 37 33 24 Robot Miss Streak 4 | 3 3 3 2 4 1 Penetration Max . | . . . . . . Secondary Targets 5 | . . . . 3 2 Max Gunslinging Chain 1 | . . . . 1 1 Shots Hit Robots 342 | 7 62 14 150 43 66 Core Hits 136 | 3 23 10 56 18 26 Critical Hits 5 | 1 . . 2 1 1 Critical Kills 1 | . . . . . 1 Critical Parts Destroyed 4 | 1 . . 2 1 . Melee Attacks 21 | . . . 21 . . Impact 21 | . . . 21 . . Slashing . | . . . . . . Piercing . | . . . . . . Sneak Attacks 3 | . . . 3 . . Combat Hostiles . | . . . . . . Follow-up Attacks . | . . . . . . Damage Inflicted 5025 | 103 708 170 2378 670 996 Guns 4810 | 80 708 170 2186 670 996 Cannons . | . . . . . . Explosions 51 | 23 . . 28 . . Melee 164 | . . . 164 . . Ramming . | . . . . . . Kinetic 4607 | 23 562 170 2186 670 996 Thermal 23 | 23 . . . . . Explosive 28 | . . . 28 . . Electromagnetic 203 | 57 146 . . . . Impact 164 | . . . 164 . . Slashing . | . . . . . . Piercing . | . . . . . . Highest Corruption 3 | 2 2 2 3 3 . Average Corruption 2 | 2 2 2 3 3 . Corruption Purged . | . . . . . . Effects 59 | . 11 1 42 5 . Message Errors 18 | . 4 1 10 3 . Matter Fused 12 | . . . 10 2 . Heat Flow Errors 9 | . 1 . 8 . . Energy Discharges 11 | . 3 . 8 . . Data Loss (minor) 9 | . 3 . 6 . . Overload Shots . | . . . . . . Overflow Damage 21 | . . . 21 . . Projectiles . | . . . . . . Explosions . | . . . . . . Melee 21 | . . . 21 . . Knockbacks . | . . . . . . Impact . | . . . . . . Kinetic . | . . . . . . Secondary . | . . . . . . Self-Inflicted Damage . | . . . . . . Shots . | . . . . . . Rammed . | . . . . . . Targets Rammed . | . . . . . . Kicked . | . . . . . . Crushed . | . . . . . . Highest Temperature 268 | 40 174 25 268 85 12 Average Temperature 45 | 22 36 10 56 42 5 Received Heat Transfer 1314 | . 249 24 411 180 450 Siege Activations . | . . . . . . Robots Corrupted . | . . . . . . Combat Hostiles . | . . . . . . Parts Fried 3 | . 1 . 2 . . Impact Corruptions 2 | . . . 2 . . Robots Melted . | . . . . . . Combat Hostiles . | . . . . . . Parts Melted . | . . . . . . Heat Transferred 50 | 50 . . . . . Parts Sabotaged . | . . . . . . Parts Stolen . | . . . . . . Parts Stripped . | . . . . . . Power Chain Reactions 1 | 1 . . . . . Missiles Intercepted . | . . . . . . Alert | -11 -10 -10 -9 -9 -8 ------- Run | Scr Mat Min Mat Min Mat Peak Influence 327 | 10 326 150 327 282 189 Initial 109 | . 6 56 . 7 109 Average 120 | 5 156 52 115 169 114 Maximum Alert Level 1 | . 1 . 1 1 . Low Security (%) 82 | 100 73 100 82 59 100 Level 1 17 | . 26 . 17 40 . Level 2 . | . . . . . . Level 3 . | . . . . . . Level 4 . | . . . . . . Level 5 . | . . . . . . High Security . | . . . . . . Max Security . | . . . . . . Squads Dispatched 4 | . 1 . 2 . 1 Investigation . | . . . . . . Extermination . | . . . . . . Reinforcement 4 | . 1 . 2 . 1 Assault . | . . . . . . Garrison . | . . . . . . Intercept . | . . . . . . Construction Impeded . | . . . . . . Haulers Reinforced . | . . . . . . Stealth | -11 -10 -10 -9 -9 -8 --------- Run | Scr Mat Min Mat Min Mat Distress Signals 4 | . 1 . 2 . 1 Communications Jammed . | . . . . . . Distress Signals . | . . . . . . Times Spotted 99 | . 21 7 39 13 19 Peak Tracking Total 5 | . 5 3 5 4 4 Tactical Retreats 10 | . 3 2 3 . 2 Traps | -11 -10 -10 -9 -9 -8 ------- Run | Scr Mat Min Mat Min Mat Traps Triggered 2 | . 2 . . . . Indirectly . | . . . . . . Trap Hack Attempts . | . . . . . . Triggered . | . . . . . . Disarmed . | . . . . . . Reprogrammed . | . . . . . . Reused . | . . . . . . Traps Extracted . | . . . . . . Installed . | . . . . . . Triggered . | . . . . . . Machines | -11 -10 -10 -9 -9 -8 ---------- Run | Scr Mat Min Mat Min Mat Machines Disabled 3 | . . . 2 1 . Max in Single Turn 2 | . . . 2 1 . Machines Sabotaged . | . . . . . . Garrisons Compromised . | . . . . . . Overloaded Fab Kills . | . . . . . . Fab Network Shutdowns . | . . . . . . Hacking | -11 -10 -10 -9 -9 -8 --------- Run | Scr Mat Min Mat Min Mat Machines Accessed 19 | . 4 1 11 . 3 Terminals 15 | . 3 1 8 . 3 Fabricators . | . . . . . . Repair Stations 2 | . . . 2 . . Recycling Units 1 | . 1 . . . . Scanalyzers 1 | . . . 1 . . Garrison Access . | . . . . . . Total Hacks 57 | . 9 3 35 . 10 Successful 39 | . 5 1 24 . 9 Failed 17 | . 4 2 10 . 1 Catastrophic 5 | . 1 . 4 . . Database Lockouts 1 | . . . 1 . . Manual 41 | . 8 3 24 . 6 Terminals 47 | . 7 3 27 . 10 Fabricators . | . . . . . . Repair Stations 6 | . . . 6 . . Recycling Units 2 | . 2 . . . . Scanalyzers 2 | . . . 2 . . Garrison Access . | . . . . . . Terminal Hacks 16 | . 1 1 11 . 3 Part Schematic 1 | . . . 1 . . Prototype ID Bank 2 | . . . 2 . . Branch Access Points 1 | . . . 1 . . Alert Level 2 | . . . 1 . 1 Unreport Threat 4 | . . 1 2 . 1 Locate Traps 4 | . 1 . 3 . . Recall Reinforcements 1 | . . . 1 . . Zone Layout 1 | . . . . . 1 Fabricator Hacks . | . . . . . . Repair Station Hacks 5 | . . . 5 . . Scan Component 3 | . . . 3 . . Repair 2 | . . . 2 . . Recycling Unit Hacks 1 | . 1 . . . . Retrieve Components 1 | . 1 . . . . Scanalyzer 2 | . . . 2 . . Insert Component 1 | . . . 1 . . Analyze 1 | . . . 1 . . Garrison Access Hacks . | . . . . . . Unauthorized Hacks 15 | . 3 . 6 . 6 Terminals 14 | . 2 . 6 . 6 Track 7 | . . . 4 . 3 Botnet 7 | . 2 . 2 . 3 Fabricators . | . . . . . . Repair Stations . | . . . . . . Recycling Units 1 | . 1 . . . . Mask 1 | . 1 . . . . Scanalyzers . | . . . . . . Garrison Access . | . . . . . . Data Cores Recovered 1 | . . . 1 . . Used 1 | . . . 1 . . Hacking Detections 18 | . 4 1 10 . 3 Full Trace Events . | . . . . . . Feedback Events . | . . . . . . Feedback Blocked . | . . . . . . Robot Schematics Acquired . | . . . . . . Robots Built . | . . . . . . Matter . | . . . . . . Time . | . . . . . . Total Robot Build Rating . | . . . . . . Part Schematics Acquired 2 | . . . 2 . . Parts Built . | . . . . . . Matter . | . . . . . . Time . | . . . . . . Total Part Build Rating . | . . . . . . Parts Repaired 2 | . . . 2 . . Time 83 | . . . 83 . . Parts Recycled . | . . . . . . Recycled Matter . | . . . . . . Retrieved Matter . | . . . . . . Retrieved Components 3 | . 3 . . . . Parts Scanalyzed 1 | . . . 1 . . Part Schematics Acquired 1 | . . . 1 . . Parts Damaged . | . . . . . . Bothacking | -11 -10 -10 -9 -9 -8 ------------ Run | Scr Mat Min Mat Min Mat Used RIF Installer . | . . . . . . Robots Hacked . | . . . . . . Non-combat . | . . . . . . Combat . | . . . . . . Robot Hacks Applied . | . . . . . . Relay Couplers Released . | . . . . . . Robots Rewired . | . . . . . . Allies Hacked . | . . . . . . Hacks Repelled . | . . . . . . Allies | -11 -10 -10 -9 -9 -8 -------- Run | Scr Mat Min Mat Min Mat Total Allies . | . . . . . . Largest Group . | . . . . . . Highest-Rated Group . | . . . . . . Highest-Rated Ally . | . . . . . . Total Orders . | . . . . . . Ally Attacks . | . . . . . . Total Damage . | . . . . . . Kills . | . . . . . . Allies Corrupted . | . . . . . . Allies Melted . | . . . . . . Intel | -11 -10 -10 -9 -9 -8 ------- Run | Scr Mat Min Mat Min Mat Robot Analysis Total . | . . . . . . Derelict Logs Recovered 1 | . . 1 . . . Drone Launches . | . . . . . . Drone Recoveries . | . . . . . . Exploration | -11 -10 -10 -9 -9 -8 ------------- Run | Scr Mat Min Mat Min Mat Turns Passed 4468 | 57 798 402 2368 379 464 Spaces Moved 2166 | 17 438 210 1155 167 179 Core . | . . . . . . Treads 459 | . 249 210 . . . Legs 102 | 17 85 . . . . Wheels 1605 | . 104 . 1155 167 179 Hover . | . . . . . . Flight . | . . . . . . Fastest Speed 95 | 120 95 160 95 150 150 Average Speed 145 | 120 136 160 144 154 150 Slowest Speed 165 | 120 160 160 165 165 150 Overloaded Moves . | . . . . . . Propulsion Burnouts . | . . . . . . Robots Hopped . | . . . . . . Cave-ins Triggered . | . . . . . . Exploration Rate (%) 38 | 3 66 29 86 28 16 Regions Visited 5 Branch Regions 2 Pre-discovered Areas . | . . . . . . Known Exits Taken 1 | . . . 1 . . Unknown Exits Taken 4 | 1 1 1 . 1 . Scrap Searched . | . . . . . . Spaces Dug 11 | . . . 11 . . Terrain Destroyed 15 | . . . 15 . . Melee 11 | . . . 11 . . Projectile . | . . . . . . AOE 4 | . . . 4 . . Terrain Rammed . | . . . . . . Walls Destroyed . | . . . . . . Machines Disabled . | . . . . . . Actions | -11 -10 -10 -9 -9 -8 --------- Run | Scr Mat Min Mat Min Mat Total 3037 | 38 567 256 1651 224 301 Wait 413 | 13 30 31 275 10 54 Move 2161 | 16 437 209 1154 166 179 Hop . | . . . . . . Pick Up 53 | . 18 1 23 4 7 Fast Attach 17 | 1 3 . 10 . 3 Attach 25 | . 3 . 7 6 9 Detach 6 | . 2 . 2 1 1 Swap 55 | . 10 1 33 6 5 Drop 57 | . 18 1 32 . 6 Fire 229 | 8 46 13 94 31 37 Melee 21 | . . . 21 . . Ram . | . . . . . . Kick . | . . . . . . Crush . | . . . . . . Escape Stasis . | . . . . . . Rewire . | . . . . . . Trap . | . . . . . . Miscellaneous . | . . . . . . Route ------- -11/Scrapyard -10/Materials (discovered 3 exits: *Mat x2 / *Min) -10/Mines (discovered 2 exits: *Mat / [*Exi]) -9/Materials (discovered 4 exits: *Mat x3 / *Min) -9/Mines (discovered 2 exits: *Mat x2) -8/Materials History --------- Turn | Location | Event 1 | -11/Scrapyard | Discovered new exit (range 3) 58 | -11/Scrapyard | Entered Materials 271 | -10/Materials | Lost 3 parts (1n2w) 288 | -10/Materials | Core integrity fell below 50% 318 | -10/Materials | Build established: Mutant 326 | -10/Materials | Discovered new exit (range 15) 480 | -10/Materials | Discovered new exit (range 8) 729 | -10/Materials | Discovered new exit (range 15) 856 | -10/Materials | Entered Mines 856 | -10/Mines | Discovered new exit (range 12) 871 | -10/Mines | Deemed a non-threat by the Exiles lab entrance 871 | -10/Mines | Discovered new exit (range 5) 882 | -10/Mines | Met a Derelict bent on vengeance 908 | -10/Mines | Learned Materials emergency access door positions 1016 | -10/Mines | Received a Rocket Launcher from a helpful Derelict 1119 | -10/Mines | Core integrity fell below 20% 1258 | -10/Mines | Entered Materials 1258 | -9/Materials | Evolved 2 slots: Propulsion x1, Utility x1 1516 | -9/Materials | Discovered new exit (range 16) 1690 | -9/Materials | Central database locked down 2130 | -9/Materials | Build established: Scavenger-Mutant 2154 | -9/Materials | Discovered new exit (range 13) 2302 | -9/Materials | Repaired Med. Armor Plating 2355 | -9/Materials | Repaired Hvy. Ion Engine 2462 | -9/Materials | Identified exit to Mines 2985 | -9/Materials | Build established: Mutant 3497 | -9/Materials | Discovered new exit (range 16) 3626 | -9/Materials | Entered Mines 3743 | -9/Mines | Core integrity fell below 50% 3799 | -9/Mines | Lost 3 parts (1n1u1w) 3879 | -9/Mines | Discovered new exit (range 9) 3908 | -9/Mines | Discovered new exit (range 5) 3932 | -9/Mines | Core integrity fell below 20% 4005 | -9/Mines | Entered Materials 4005 | -8/Materials | Evolved 2 slots: Utility x2 4426 | -8/Materials | Build established: Hacker-Mutant 4469 | -8/Materials | Self-destructed Last Messages --------------- 04381_ K-01 Serf collects debris. 04388_ G-47 Trooper destroyed. 04388_ K-01 Serf collects debris. 04389_ Acquired 38 matter. 04391_ K-01 Serf collects debris. 04404_ Acquired Imp. Heat Sink. 04405_ K-01 Serf collects debris. 04406_ Acquired 10 matter. 04408_ K-01 Serf collects debris. 04411_ R-06 Scavenger collects Aluminum Leg. 04421_ R-06 Scavenger collects Imp. Heat Sink. 04423_ Hacking Suite destroyed. 04439_ Acquired 11 matter. 04442_ Acquired 12 matter. 04445_ R-06 Scavenger collects Aluminum Leg. 04454_ Critical hit. 04454_ Lgt. Treads destroyed. 04464_ Mic. Nuclear Core destroyed. 04467_ Imp. Assault Rifle destroyed. 04467_ K-01 Serf collects debris. Map ----- +----------------------------------------------------+ | ?????????? ### ##???????????????? | | ?????????? ########## ##???????????????? | | ## ??????? ""#???????## """ ##???????????????? | | # ????? T"########## """ ##???????????????? | | # ""??? ""########## """ ##???????????????? | | # ? # !!### "T" """ ##???????????????? | | # # [ ### """ """ ##???????????????? | | # # ### k ######???????????? | | # + #######+##########???????????? | | # # ###### + ##???????????? | | # = == # +! # # ##???????????? | | ## == ? ######## ] # # ##???????????? | | =??? ######## + + ##???????????? | | ? ????? #?????## ! # # ##???????????? | | ? ??????? #?????## # # ##???????????? | | ??????????################ #########???????????? | | ?????????? ##### #################???? | | ?????????? #??## #################???? | | ?????????? #??## ### T ##???? | | ?????????? #??## ### """"" ##???? | | ?????????? #??## k###/ """"" ##???? | | ?????????? ##### ### """"" ##???? | | ??????????+############### ### =% ###### | | ???? ! %Y ########+########### | | ???? ###########YY r | | ????????????? ###########@kT % | | ???????????????????????## | | ???????????????????????## * ##### ######+## | | ???????????????????????############* **### / | | ???????????????????????#########?## *!!**### | | ?????????????????????????????????##* !! *### """ | | ?????????????????????????????????########### """"" | | ?????????????????????????????????########### """"" | | ??????????????????????????????????????????## """"" | | ??????????????????????????????????????????## """ | | ??????????????????????????????????????????## | | ????????????????????????????????????????????###### | | | | | | | | | | | | | | | | | | | | | | | | | | | +----------------------------------------------------+ Best States ------------- Heat Dissipation 59 Energy Generation 15 Energy Capacity 280 Matter Stores 300 Matter Capacity 300 Sight Range 16 Terrain Scan Range 16 Terrain Scan Density 10 ECM Strength 1 Armor Coverage 375 Evasion (%) 55 Recoil Reduction 3 Offensive Hacking 30 Item Schematics ----------------- Lrg. Storage Unit | -9/Materials | Hacked Hacking Suite | -9/Materials | Scanalyzed Robot Schematics ------------------ None Fabricated ------------ Nothing Alien Tech Used ----------------- None Achievements -------------- None Challenges ------------ None Game ------ Seed ControlGammaMace Manual? 0 Play Time 01:04:13 Cumulative 1007.2 hours Start 2021.04.02 @ 11:01:43 End 2021.04.02 @ 12:47:18 Sessions 3 Manual Loads 0 Difficulty Rogue Special Mode None Game No. 283 Rogue 283 Adventurer 0 Explorer 0 Win Type - Total 37 Types 24/5/5/3/0/0/0/0/0 Lore% 80 Gallery% 86 Achievement% 73 Wizard Run 0 Options --------- ASCII 0 Keyboard 1 Movement Numpad Keybinds 0 Fullscreen 1 Font 24/Smallcaps Map View 76x50 Tactical HUD 1 Map Filters NONE Filters NONE Steam 1 RUN: 62cab38d-7bbc-4388-bf8e-7bb451633def